bitfinex-derivatives/quotes_ETHF0:USTF0_20250530
["timestamp","ask_amount","ask_price","bid_price","bid_amount"]
[1748624127222,2.7965,2545.6,2544.8,1.96436]
[1748624127424,0.78569,2545.0,2544.9,6.0613]
[1748624127617,0.78582,2544.6,2544.5,2.9961]
[1748624127817,2.7965,2544.9,2544.5,6.2039]
[1748624128016,0.78577,2544.8,2544.6,0.78579]
[1748624128217,2.7965,2544.9,2544.5,5.8496]
[1748624128419,0.00589426,2545.0,2544.9,0.78572]
[1748624128825,0.00589426,2545.0,2544.9,3.63922]
[1748624129127,0.78572,2544.9,2544.8,3.2078]
[1748624129318,3.58222,2544.9,2544.8,3.2078]
[1748624129619,0.78572,2544.9,2544.8,3.2078]
[1748624129812,0.78572,2544.9,2544.8,3.99354]
[1748624130013,0.79160426,2545.0,2544.9,0.78572]
[1748624130220,0.00589426,2545.0,2544.9,3.60372]
[1748624130419,0.79158426,2545.0,2544.9,2.818]
[1748624130616,0.00589426,2545.0,2544.5,6.2039]
[1748624130817,0.78582,2544.6,2544.5,6.2039]
[1748624131025,0.78582,2544.6,2544.5,2.9961]
[1748624131426,0.78585,2544.5,2544.4,6.724]
[1748624131617,0.78588,2544.4,2544.3,0.00589426]
[1748624132119,3.52928,2544.4,2544.3,0.00589426]
[1748624135827,2.7434,2544.4,2544.3,0.00589426]
[1748624136021,0.00589426,2545.0,2544.5,1.96463]
[1748624136221,0.00589426,2545.0,2544.9,0.78573]
[1748624136733,0.00589426,2545.0,2544.9,3.52363]
[1748624137124,0.1964,2545.1,2545.0,0.7857]
[1748624137330,0.78553,2545.6,2545.4,0.78555]
[1748624137523,0.78554,2545.5,2545.4,6.726]
[1748624137724,2.8862,2545.5,2545.1,6.726]
[1748624138123,0.78563,2545.2,2545.1,7.51165]
[1748624138619,1.96973426,2545.6,2545.1,7.51165]
[1748624138620,1.96973426,2545.6,2545.2,0.78563]
[1748624139127,0.78557,2545.4,2545.3,6.2154]
[1748624139328,0.00589426,2545.6,2545.5,0.78554]
[1748624139626,0.79142426,2545.6,2545.4,0.78555]
[1748624139926,0.79142426,2545.6,2545.5,3.0076]
[1748624140124,0.00589426,2545.6,2545.5,3.79314]
[1748624141037,0.79140426,2545.6,2545.5,3.0076]
[1748624141231,0.00589426,2545.6,2545.3,3.99339]
[1748624141534,0.00589426,2545.6,2545.5,0.78554]
[1748624142034,0.00589426,2545.6,2545.5,3.53294]
[1748624142841,0.00589426,2545.6,2545.5,11.43534]
[1748624143731,3.2078,2546.6,2545.7,1.96365]
[1748624144035,2.7599,2546.5,2546.4,0.78526]
[1748624144234,3.54513,2546.5,2546.4,7.42526]
[1748624144625,0.78522,2546.6,2546.4,7.42526]
[1748624144829,4.72265,2547.0,2546.5,2.9862]
[1748624145037,0.78523,2546.5,2546.4,6.64]
[1748624145234,0.78529,2546.3,2546.2,0.00589426]
[1748624145733,2.7385,2546.4,2546.2,0.00589426]
[1748624146133,0.78529,2546.3,2546.2,0.00589426]
[1748624146333,2.7385,2546.4,2546.2,0.00589426]
[1748624146530,2.7385,2546.4,2546.2,0.79122426]
[1748624146531,0.78529,2546.3,2546.2,0.79122426]
[1748624146735,2.7385,2546.4,2546.2,0.00589426]
[1748624146935,3.52378,2546.4,2546.2,0.79122426]
[1748624147137,3.2078,2546.9,2546.3,3.99309]
[1748624147341,0.78525,2546.5,2546.4,7.42426]
[1748624147539,2.7385,2546.7,2546.4,6.639]
[1748624147737,2.7385,2546.7,2546.6,3.2078]
[1748624147939,3.52367,2546.7,2546.6,3.2078]
[1748624148435,0.78517,2546.7,2546.6,3.2078]
[1748624148742,0.78517,2546.7,2546.6,3.99299]
[1748624149037,2.9405,2547.0,2546.9,0.78511]
[1748624149235,0.78493,2547.5,2547.0,0.78508]
[1748624149543,6.1294,2548.2,2547.2,5.17034]
[1748624149839,6.1294,2548.2,2547.1,28.916]
[1748624149840,6.1294,2548.2,2547.7,3.2078]
[1748624150034,2.9405,2548.1,2548.0,3.99257]
[1748624150236,3.72524,2548.1,2548.0,3.2078]
[1748624150541,2.9405,2548.1,2547.8,6.638]
[1748624150738,0.78478,2548.0,2547.8,6.638]
[1748624150938,0.78475,2548.1,2547.8,10.36803]
[1748624151135,3.79527,2548.0,2547.8,6.638]
[1748624151330,4.97247,2548.0,2547.4,6.64289426]
[1748624151541,0.78481,2547.9,2547.6,0.78487]
[1748624151731,3.0105,2547.8,2547.7,0.78486]
[1748624151933,3.0105,2547.8,2547.6,3.99268]
[1748624152142,3.0105,2547.8,2547.6,3.99269]
[1748624152350,3.0105,2547.8,2547.6,3.2078]
[1748624152841,3.79535,2547.8,2547.6,3.2078]
[1748624153045,0.78486,2547.7,2547.6,3.2078]
[1748624153240,3.79536,2547.7,2547.6,9.8448]
[1748624153634,3.79536,2547.7,2547.6,9.8438]
[1748624154434,3.79536,2547.7,2547.4,0.00589426]
[1748624154435,0.78492,2547.5,2547.4,0.00589426]
[1748624154640,0.78492,2547.5,2547.4,6.64189426]
[1748624155038,0.78492,2547.5,2547.4,0.00589426]
[1748624155643,1.96255,2547.2,2546.5,6.636]
[1748624155835,2.8007,2547.1,2546.6,0.78519]
[1748624156033,2.7688,2547.0,2546.7,3.2078]
[1748624156238,3.2078,2547.6,2546.8,1.96286]
[1748624156440,0.78496,2547.4,2547.2,0.78501]
[1748624156742,0.78496,2547.4,2547.3,3.2078]
[1748624157138,0.78505,2547.1,2547.0,0.00589426]
[1748624157344,0.78504,2547.2,2547.0,0.00589426]
[1748624157547,0.78502,2547.2,2547.1,9.8438]
[1748624157937,2.7688,2547.5,2547.1,10.62885]
[1748624158137,0.78502,2547.2,2547.1,9.8438]
[1748624158345,0.78505,2547.1,2547.0,0.00589426]
[1748624158541,3.78345,2547.1,2547.0,0.00589426]
[1748624160438,0.78505,2547.1,2547.0,0.00589426]
[1748624160746,0.78542,2545.9,2545.8,9.5461]
[1748624161147,2.7219,2546.0,2545.9,0.78542]
[1748624161446,0.7854,2546.0,2545.8,3.69654]
[1748624161650,0.7854,2546.0,2545.9,6.635]
[1748624161949,0.78541,2546.0,2545.8,9.5461]
[1748624162143,2.7219,2545.9,2545.8,9.5461]
[1748624162337,2.7219,2545.9,2545.8,10.33155]
[1748624162650,3.50732,2545.9,2545.8,9.5461]
[1748624162843,2.7219,2545.9,2545.8,3.69655]
[1748624163044,2.9179,2545.9,2545.8,10.33255]
[1748624163338,0.78545,2545.8,2545.7,3.2078]
[1748624163538,0.78545,2545.8,2545.7,9.8438]
[1748624163744,0.196,2545.9,2545.8,0.78545]
[1748624163949,0.196,2545.9,2545.8,3.63185]
[1748624164244,0.00589426,2546.2,2546.1,0.78536]
[1748624164453,0.00589426,2546.2,2546.1,3.99316]
[1748624165547,0.00589426,2546.2,2546.1,10.62916]
[1748624168349,2.7693,2546.5,2546.4,0.78527]
[1748624168543,2.7693,2546.5,2546.4,3.99307]
[1748624168939,2.7424,2546.8,2546.4,3.99307]
[1748624168940,3.55381,2547.0,2546.5,1.96305]
[1748624169145,2.978,2546.9,2546.8,0.78515]
[1748624169449,3.2078,2547.9,2546.7,3.2078]
[1748624169744,3.2078,2547.9,2546.5,44.585]
[1748624169745,2.7596,2547.5,2547.3,3.2078]
[1748624169946,5.9674,2547.5,2546.9,9.8438]
[1748624170157,1.96241,2547.4,2546.9,9.8438]
[1748624170341,0.78508,2547.0,2546.9,0.00589426]
[1748624170546,0.78526,2546.5,2546.2,3.99312]
[1748624170851,0.78521,2546.6,2546.4,0.78527]
[1748624171043,2.9032,2546.9,2546.2,3.2078]
[1748624171243,0.78521,2546.6,2546.3,7.33629]
[1748624171652,0.00589426,2546.7,2546.4,0.78527]
[1748624171846,0.79110426,2546.7,2546.4,0.78527]
[1748624172046,0.79108426,2546.7,2546.5,3.99303]
[1748624172248,0.00589426,2546.7,2546.5,3.99303]
[1748624172447,0.00589426,2546.7,2546.6,0.78521]
[1748624173054,0.00589426,2546.7,2546.5,3.99303]
[1748624173257,0.78521,2546.6,2546.5,3.2078]
[1748624173457,0.7853,2546.3,2546.2,0.00589426]
[1748624173847,0.78529,2546.4,2546.2,0.00589426]
[1748624174047,1.96886426,2546.7,2546.2,0.00589426]
[1748624174048,2.8076,2546.5,2546.2,0.00589426]
[1748624174247,2.8076,2546.5,2546.4,0.78527]
[1748624174654,2.8076,2546.5,2546.2,0.00589426]
[1748624174851,0.78528,2546.4,2546.2,0.00589426]
[1748624175049,0.7853,2546.3,2546.2,0.00589426]
[1748624175250,1.96324,2546.4,2545.7,3.2078]
[1748624175448,0.78535,2546.2,2545.9,0.7854]
[1748624175747,6.0154,2546.5,2546.1,0.78535]
[1748624175943,0.78527,2546.4,2546.1,0.78535]
[1748624176147,0.78522,2546.6,2546.3,3.99308]
[1748624176553,0.00589426,2546.7,2546.3,3.2078]
[1748624177155,0.79108426,2546.7,2546.5,0.78524]
[1748624177354,0.79108426,2546.7,2546.4,0.78525]
[1748624177561,0.00589426,2546.7,2546.3,3.2078]
[1748624178054,0.00589426,2546.7,2546.4,0.78525]
[1748624178250,0.00589426,2546.7,2546.3,3.2078]
[1748624178251,0.79109426,2546.7,2546.3,3.2078]
[1748624178454,0.00589426,2546.7,2546.6,3.99301]
[1748624178954,0.79107426,2546.7,2546.6,3.2078]
[1748624179955,0.79107426,2546.7,2546.4,10.34007]
[1748624180157,0.79109426,2546.7,2546.4,9.5548]
[1748624180354,0.78521,2546.6,2546.4,9.5548]
[1748624180655,0.78531,2546.3,2546.2,3.21369426]
[1748624181050,5.7085,2546.6,2546.2,3.21369426]
[1748624181051,0.78526,2546.5,2546.2,3.21369426]
[1748624181353,5.7085,2546.6,2546.2,3.21369426]
[1748624182059,0.78531,2546.3,2546.2,3.21369426]
[1748624182857,0.78531,2546.3,2546.2,0.00589426]
[1748624184952,1.96342,2546.2,2545.3,3.9934]
[1748624185153,0.78561,2545.3,2545.2,6.551]
[1748624185460,1.96373,2545.7,2545.2,6.551]
[1748624185653,0.78561,2545.3,2545.2,6.551]
[1748624185958,5.17122,2546.2,2545.2,9.7588]
[1748624186147,1.9635,2546.0,2545.2,12.792]
[1748624186460,0.78554,2545.6,2545.4,0.78556]
[1748624186758,0.78561,2545.3,2545.2,6.241]
[1748624186966,0.78561,2545.3,2545.2,10.54544]
[1748624187264,1.96376,2545.7,2545.2,10.54544]
[1748624187462,3.64727,2545.5,2545.3,0.78561]
[1748624187764,2.8617,2545.5,2545.2,9.7598]
[1748624188459,0.78561,2545.3,2545.2,3.2078]
[1748624188662,0.7856,2545.4,2545.3,6.552]
[1748624188858,4.82565,2545.5,2545.0,0.00589426]
[1748624189064,0.78568,2545.1,2545.0,0.00589426]
[1748624189760,0.00589426,2545.3,2545.2,0.78564]
[1748624189957,0.00589426,2545.3,2545.2,3.99344]
[1748624190158,0.00589426,2545.3,2545.2,8.99344]
[1748624190467,0.78543,2545.9,2545.8,0.78546]
[1748624190653,2.914,2545.9,2545.6,9.7608]
[1748624190856,5.17091,2546.6,2545.7,1.96373]
[1748624191064,0.78536,2546.2,2546.0,0.78538]
[1748624191261,2.8869,2546.5,2546.2,0.78533]
[1748624191463,0.78532,2546.3,2545.9,3.2078]
[1748624191661,2.914,2546.4,2546.2,3.2078]
[1748624191860,2.914,2546.4,2546.2,3.99313]
[1748624192058,0.78531,2546.3,2546.2,3.2078]
[1748624192264,3.6993,2546.4,2546.2,3.2078]
[1748624192466,0.00589426,2546.6,2546.5,0.78526]
[1748624192665,0.00589426,2546.6,2546.5,3.99306]
[1748624193264,0.78506,2547.2,2547.0,0.7851]
[1748624193469,0.78506,2547.2,2546.5,8.99306]
[1748624193470,2.914,2547.3,2546.9,9.7598]
[1748624193766,3.0091,2547.1,2547.0,0.7851]
[1748624194070,3.0091,2547.1,2546.9,9.7598]
[1748624194364,0.00589426,2547.3,2547.2,0.78504]
[1748624194562,0.00589426,2547.3,2547.2,3.99284]
[1748624194962,0.00589426,2547.3,2547.2,3.2078]
[1748624195171,0.00589426,2547.3,2547.2,3.99284]
[1748624196066,3.0091,2547.8,2547.7,0.78489]
[1748624196266,3.0091,2547.8,2547.7,10.54369]
[1748624196458,2.8,2548.1,2548.0,0.78479]
[1748624196662,2.8,2548.1,2547.9,0.7848]
[1748624196862,2.9228,2548.0,2547.9,0.7848]
[1748624197563,2.9228,2548.0,2547.8,0.78483]
[1748624197764,2.9228,2548.0,2547.9,0.78483]
[1748624198367,2.9228,2548.0,2547.8,0.78484]
[1748624198669,2.9228,2548.0,2547.7,9.76469426]
[1748624198869,2.9228,2548.0,2547.9,0.78483]
[1748624199167,3.70761,2548.0,2547.8,0.78484]
[1748624199369,0.78486,2547.8,2547.7,3.21369426]
[1748624199570,0.78486,2547.8,2547.7,0.00589426]
[1748624199962,2.9228,2548.0,2547.7,0.00589426]
[1748624200262,0.78486,2547.8,2547.7,0.00589426]
[1748624200462,0.78483,2547.9,2547.7,0.00589426]
[1748624200660,3.58286,2547.8,2547.7,0.00589426]
[1748624200863,3.2078,2548.6,2547.7,3.21369426]
[1748624201170,2.798,2548.2,2548.0,3.2078]
[1748624201370,3.58274,2548.2,2548.0,10.46058]
[1748624201764,6.81672,2548.6,2548.4,0.78466]
[1748624201967,8.8301,2548.6,2548.0,9.6758]
[1748624202167,5.6223,2548.6,2548.0,9.6758]
[1748624202367,0.78472,2548.3,2548.1,0.78476]
[1748624202569,2.798,2548.2,2548.1,0.78476]
[1748624203268,2.798,2548.2,2547.7,3.21369426]
[1748624203269,0.78486,2547.8,2547.7,3.21369426]
[1748624203871,0.78483,2547.9,2547.7,3.99856426]
[1748624204076,2.8349,2547.8,2547.7,3.99856426]
[1748624204576,3.61976,2547.8,2547.7,3.99856426]
[1748624204877,2.8349,2547.8,2547.7,3.99856426]
[1748624205677,1.96169,2548.4,2547.7,3.21369426]
[1748624205979,2.8247,2548.1,2548.0,0.7848]
[1748624206174,2.8247,2548.1,2547.8,6.467]
[1748624206571,0.78482,2548.0,2547.9,0.78482]
[1748624206772,0.78483,2547.9,2547.8,6.467]
[1748624207179,2.8247,2548.1,2547.8,6.467]
[1748624207371,3.60947,2548.1,2548.0,0.7848]
[1748624207677,2.8247,2548.1,2548.0,0.7848]
[1748624207873,2.8243,2548.6,2548.5,0.78464]
[1748624208084,2.8243,2548.6,2548.4,0.78466]
[1748624208373,2.8243,2548.6,2548.3,3.2078]
[1748624208374,1.96169,2548.4,2548.0,10.45859]
[1748624208578,2.8247,2548.3,2548.0,9.6738]
[1748624209075,0.78475,2548.2,2548.1,0.78475]
[1748624209272,3.60943,2548.3,2548.2,0.78473]
[1748624209473,0.78475,2548.2,2548.1,0.78474]
[1748624209676,3.73935,2548.2,2548.1,0.78474]
[1748624209873,2.9546,2548.2,2548.1,0.78474]
[1748624211473,3.73933,2548.2,2548.1,0.78474]
[1748624211773,0.78472,2548.3,2548.2,0.7847]
[1748624211981,0.78486,2547.8,2547.7,3.21369426]
[1748624212181,0.78495,2547.5,2547.4,3.2078]
[1748624212479,0.78495,2547.5,2547.1,3.2078]
[1748624212480,0.78499,2547.5,2547.1,3.2078]
[1748624212678,0.78499,2547.5,2547.4,0.78497]
[1748624212876,4.79357,2547.7,2546.9,4.94732]
[1748624213075,0.78501,2547.4,2547.3,0.78501]
[1748624213282,0.00589426,2547.6,2547.1,0.00589426]
[1748624213575,1.96821426,2547.6,2547.1,0.00589426]
[1748624213772,0.78504,2547.2,2547.1,0.00589426]
[1748624213976,0.78503,2547.3,2547.1,3.21369426]
[1748624214177,0.78504,2547.2,2547.1,3.21369426]
[1748624214378,0.78504,2547.2,2547.1,3.99876426]
[1748624214873,0.78504,2547.2,2547.1,3.21369426]
[1748624215073,0.78504,2547.2,2547.1,3.99876426]
[1748624215270,0.78501,2547.4,2547.3,0.785]
[1748624215477,0.00589426,2547.6,2547.1,3.21369426]
[1748624215669,0.00589426,2547.6,2547.2,1.96259]
[1748624215873,0.00589426,2547.6,2547.5,0.78495]
[1748624215874,0.79082426,2547.6,2547.5,0.78495]
[1748624216678,0.79082426,2547.6,2547.4,3.2078]
[1748624216983,0.00589426,2547.6,2547.4,3.2078]
[1748624217182,0.78495,2547.5,2547.4,3.99275]
[1748624217679,0.78495,2547.5,2547.4,3.2078]
[1748624217876,0.78495,2547.5,2547.4,3.99278]
[1748624218779,0.78495,2547.5,2547.4,3.2078]
[1748624219177,0.78495,2547.5,2547.1,0.79096426]
[1748624219178,0.78504,2547.2,2547.1,0.00589426]
[1748624219680,8.99284,2547.2,2547.1,0.00589426]
[1748624220282,0.78526,2546.5,2546.4,3.99308]
[1748624220485,0.78526,2546.5,2546.4,3.2078]
[1748624220683,0.78529,2546.4,2546.3,6.466]
[1748624221078,1.96325,2546.4,2546.1,0.00589426]
[1748624221286,1.96325,2546.4,2545.6,1.96385]
[1748624221287,0.78554,2545.6,2545.0,9.0748]
[1748624221484,0.78554,2545.6,2545.5,3.91784201]
[1748624221485,0.98174,2545.6,2545.5,3.91784201]
[1748624222286,0.1962,2545.6,2545.1,0.78569]
[1748624222491,0.78566,2545.2,2545.1,0.00589426]
[1748624223490,3.99346,2545.2,2545.1,0.00589426]
[1748624224384,8.99346,2545.2,2545.1,0.00589426]
[1748624225387,3.2078,2545.5,2545.1,0.00589426]
[1748624225590,0.98175,2545.6,2545.1,3.21369426]
[1748624225894,0.1962,2545.6,2545.5,0.78557]
[1748624226184,0.78524,2546.6,2546.4,0.78527]
[1748624226392,0.78528,2546.5,2546.3,0.78531]
[1748624226587,3.2078,2546.7,2546.1,3.2078]
[1748624226890,0.78535,2546.2,2546.1,3.2078]
[1748624227083,3.2078,2546.7,2545.9,2.9981]
[1748624227084,0.78541,2546.0,2545.9,6.47]
[1748624227284,0.78541,2546.0,2545.9,7.25545]
[1748624227483,0.78541,2546.0,2545.9,6.47]
[1748624227887,1.96352,2546.1,2545.4,46.061]
[1748624228187,0.78557,2545.5,2545.4,6.47]
[1748624228985,3.68977,2545.5,2545.4,6.47]
[1748624229185,0.78557,2545.5,2545.4,6.47]
[1748624229894,0.78566,2545.2,2545.1,0.00589426]
[1748624231295,0.78566,2545.2,2545.1,0.79157426]
[1748624231496,0.78566,2545.2,2545.1,0.00589426]
[1748624231991,2.926,2545.4,2545.1,0.79157426]
[1748624232186,0.78566,2545.2,2545.1,2.90609426]
[1748624232388,2.926,2545.4,2545.1,2.90609426]
[1748624232585,3.2078,2545.6,2545.1,2.90609426]
[1748624232791,2.926,2545.5,2545.1,3.69177426]
[1748624233091,2.926,2545.5,2545.2,0.78565]
[1748624233294,0.78565,2545.3,2545.1,3.69175426]
[1748624233487,0.78566,2545.2,2545.1,0.00589426]
[1748624233794,3.63706,2545.2,2545.1,0.00589426]
[1748624234189,3.63706,2545.2,2545.1,0.79158426]
[1748624234384,3.63706,2545.2,2545.1,0.00589426]
[1748624234802,0.78566,2545.3,2545.1,0.00589426]
[1748624235094,2.8514,2545.5,2545.3,0.78563]
[1748624235395,2.8514,2545.5,2545.2,0.78565]
[1748624235597,2.8514,2545.5,2545.1,2.82909426]
[1748624235792,0.78566,2545.2,2545.1,2.82909426]
[1748624235987,0.78566,2545.2,2545.1,3.61478426]
[1748624236294,0.78566,2545.2,2545.1,0.00589426]
[1748624237891,3.82094,2545.3,2545.1,0.00589426]
[1748624238091,3.0353,2545.3,2545.2,0.78566]
[1748624238588,0.78561,2545.4,2545.3,0.78561]
[1748624238783,0.78563,2545.3,2545.2,3.99345]
[1748624239192,0.78562,2545.4,2545.3,0.78562]
[1748624239495,0.78563,2545.3,2545.2,3.99343]
[1748624239694,5.9893,2545.9,2545.2,5.17194]
[1748624239899,0.78553,2545.7,2545.6,0.78553]
[1748624240088,0.78554,2545.6,2545.5,3.99335]
[1748624240289,0.78552,2545.7,2545.6,0.78553]
[1748624240494,0.78554,2545.6,2545.5,3.99334]
[1748624240798,0.78554,2545.7,2545.6,0.78553]
[1748624241098,0.7855,2545.8,2545.7,0.7855]
[1748624241501,2.9186,2545.9,2545.8,0.78548]
[1748624241793,2.8059,2546.3,2546.2,0.78535]
[1748624242004,0.00589426,2546.4,2546.3,0.78532]
[1748624242491,16.53572917,2547.2,2546.3,5.0]
[1748624242689,2.8834,2547.3,2546.9,3.2078]
[1748624242995,7.97598,2547.7,2546.9,3.2078]
[1748624243188,2.8834,2547.6,2546.9,3.99294]
[1748624243393,0.78508,2547.1,2546.9,3.99294]
[1748624243600,0.78506,2547.2,2547.0,0.78509]
[1748624243798,0.78507,2547.1,2546.9,3.99292]
[1748624243997,0.00589426,2547.3,2546.9,3.2078]
[1748624244298,0.7851,2547.0,2546.9,3.2078]
[1748624244500,0.78509,2547.1,2546.9,3.99292]
[1748624244796,2.8834,2547.2,2546.9,3.2078]
[1748624244996,0.7851,2547.0,2546.9,3.2078]
[1748624245399,0.78516,2546.8,2546.7,0.00589426]
[1748624245699,0.78536,2546.2,2546.0,3.2078]
[1748624245900,0.78538,2546.1,2546.0,3.2078]
[1748624246104,3.0329,2546.1,2546.0,3.99321]
[1748624246297,3.81828,2546.1,2546.0,3.2078]
[1748624246598,0.78544,2545.9,2545.8,0.00589426]
[1748624247000,3.0329,2546.1,2545.9,0.78542]
[1748624247396,3.2078,2546.5,2545.8,0.00589426]
[1748624247602,3.2078,2546.9,2546.1,3.2078]
[1748624247899,3.0329,2547.2,2546.9,0.78511]
[1748624248099,0.78514,2546.9,2546.7,9.5948]
[1748624248297,0.78512,2547.0,2546.7,9.5948]
[1748624248495,1.96272,2547.1,2546.7,9.5948]
[1748624248795,0.78516,2546.8,2546.7,9.5948]
[1748624249592,0.78516,2546.8,2546.7,3.2078]
[1748624249800,0.78526,2546.5,2546.4,9.5948]
[1748624250900,0.78526,2546.5,2546.4,6.387]
[1748624252098,0.78517,2546.9,2546.8,0.78514]
[1748624252303,1.96261,2547.2,2546.4,14.5948]
[1748624252304,0.7852,2546.8,2546.7,3.99299]
[1748624253009,0.7852,2546.8,2546.7,3.2078]
[1748624254398,0.78517,2546.8,2546.7,3.99298]
[1748624254999,0.78517,2546.8,2546.7,3.2078]
[1748624255199,8.03918,2547.0,2546.4,3.2078]
[1748624255400,0.78529,2546.4,2546.3,6.387]
[1748624255901,0.78544,2545.9,2545.8,0.00589426]
[1748624260604,3.0191,2546.1,2545.9,0.78543]
[1748624260808,3.0191,2546.1,2546.0,3.99321]
[1748624261103,3.80448,2546.1,2546.0,3.99321]
[1748624261407,0.78537,2546.2,2546.1,0.78538]
[1748624261603,0.78527,2546.5,2546.1,8.26946]
[1748624261805,0.78527,2546.5,2546.4,0.78526]
[1748624262009,0.78529,2546.4,2546.3,3.9931]
[1748624262205,0.78529,2546.4,2546.3,3.2078]
[1748624262503,0.78529,2546.4,2546.3,3.99312]
[1748624262704,0.78533,2546.3,2546.1,9.1848]
[1748624262903,0.78531,2546.4,2546.3,0.78531]
[1748624263107,0.78533,2546.3,2546.2,0.78533]
[1748624263805,3.2078,2546.3,2545.8,2.83659426]
[1748624264111,0.78541,2546.0,2545.9,7.09143]
[1748624264304,0.78541,2546.0,2545.9,6.306]
[1748624266110,3.78571,2546.0,2545.9,6.306]
[1748624269703,0.78544,2545.9,2545.8,0.00589426]
[1748624270006,3.53714,2545.9,2545.8,0.00589426]
[1748624271106,8.53714,2545.9,2545.8,4.26e-06]
[1748624272107,0.78581,2544.7,2544.6,5.42190163]
[1748624272414,0.78581,2544.7,2544.4,6.307]
[1748624272415,0.78588,2544.5,2544.4,7.09291]
[1748624272607,0.78588,2544.5,2544.4,6.307]
[1748624274104,0.78594,2544.3,2544.2,0.00589426]
[1748624275717,0.78594,2544.3,2544.2,0.79184426]
[1748624275925,0.78585,2544.6,2544.5,0.78585]
[1748624276104,0.78594,2544.4,2544.3,0.78593]
[1748624276311,0.00589426,2544.7,2544.6,0.78584]
[1748624276510,0.00589426,2544.7,2544.6,3.99364]
[1748624277312,5.17152,2545.8,2544.6,8.2078]
[1748624277508,0.78563,2545.3,2545.2,3.2078]
[1748624277702,2.8972,2545.6,2545.2,3.2078]
[1748624277907,0.78563,2545.3,2545.2,3.99345]
[1748624278110,2.8972,2545.6,2545.2,3.2078]
[1748624278315,0.7856,2545.4,2545.2,3.2078]
[1748624278517,2.8972,2545.6,2545.2,3.99343]
[1748624278811,0.78563,2545.3,2545.2,3.2078]
[1748624279203,0.78572,2545.0,2544.9,9.5168]
[1748624279404,0.78572,2545.0,2544.9,10.30255]
[1748624279616,0.78572,2545.0,2544.9,9.5168]
[1748624280316,0.78571,2545.1,2544.9,9.5168]
[1748624280516,0.78572,2545.0,2544.9,9.5168]
[1748624281217,3.0116,2545.2,2544.9,9.5168]
[1748624281521,0.78563,2545.3,2544.9,9.5168]
[1748624281816,0.00589426,2545.7,2545.6,0.78553]
[1748624282015,0.00589426,2545.7,2545.6,3.2078]
[1748624282016,0.79139426,2545.7,2545.6,3.2078]
[1748624282215,0.79139426,2545.7,2545.5,7.09455]
[1748624282216,0.78553,2545.6,2545.5,6.309]
[1748624282413,0.78559,2545.4,2545.3,6.1935]
[1748624282612,0.78559,2545.4,2545.3,3.2078]
[1748624282814,0.78572,2545.0,2544.9,9.5168]
[1748624283120,0.78571,2545.1,2545.0,0.78571]
[1748624283311,0.78572,2545.0,2544.9,9.5168]
[1748624283514,3.76692,2545.0,2544.9,9.5168]
[1748624284218,3.76692,2545.0,2544.8,39.606]
[1748624284219,0.78575,2544.9,2544.8,39.606]
[1748624284412,3.2078,2545.6,2544.8,49.77821]
[1748624284610,2.9812,2545.6,2545.1,3.2078]
[1748624284818,2.9812,2545.6,2544.8,42.5244]
[1748624284819,3.2078,2546.5,2545.5,1.96392]
[1748624285009,0.78535,2546.3,2545.9,3.2078]
[1748624285209,0.78541,2546.0,2545.9,3.2078]
[1748624285416,0.78541,2546.1,2546.0,0.7854]
[1748624285619,0.78541,2546.1,2546.0,0.78539]
[1748624285811,0.78541,2546.0,2545.9,10.30222]
[1748624286009,0.7854,2546.1,2546.0,0.7854]
[1748624286209,0.78541,2546.0,2545.9,13.20042]
[1748624286410,0.78541,2546.0,2545.9,9.5168]
[1748624287028,0.78541,2546.0,2545.9,10.30224]
[1748624287317,0.78541,2546.0,2545.9,3.2078]
[1748624287525,0.78544,2545.9,2545.8,0.00589426]
[1748624287722,3.69904,2545.9,2545.8,0.00589426]
[1748624288423,3.69904,2545.9,2545.8,0.79136426]
[1748624288621,3.69904,2545.9,2545.8,0.00589426]
[1748624289023,0.78538,2546.2,2545.8,0.00589426]
[1748624289314,2.8154,2546.2,2545.9,3.2078]
[1748624289519,0.78541,2546.0,2545.9,3.2078]
[1748624290025,0.78541,2546.0,2545.9,3.99324]
[1748624290320,0.7854,2546.1,2545.9,3.2078]
[1748624290524,2.8154,2546.2,2546.1,0.78538]
[1748624290723,2.8154,2546.2,2546.0,0.78539]
[1748624291022,0.7854,2546.1,2546.0,0.78539]
[1748624291526,3.60078,2546.2,2546.1,0.78538]
[1748624292114,0.78541,2546.0,2545.9,3.2078]
[1748624292521,0.78541,2546.0,2545.8,6.31389426]
[1748624292522,0.78544,2545.9,2545.8,0.00589426]
[1748624292732,3.52654,2545.9,2545.8,0.00589426]
[1748624293422,8.52654,2545.9,2545.8,4.26e-06]
[1748624295223,14.75454,2545.9,2545.8,4.26e-06]
[1748624296124,0.78584,2544.7,2544.2,12.3601]
[1748624296329,0.78584,2544.7,2544.6,0.78584]
[1748624297029,4.90653,2545.0,2544.5,3.2078]
[1748624297030,0.78584,2544.6,2544.5,3.99366]
[1748624297226,0.78584,2544.6,2544.5,5.9443]
[1748624297727,2.7344,2544.8,2544.5,3.2078]
[1748624298029,0.7858,2544.8,2544.7,0.78581]
[1748624298621,4.73098,2545.7,2545.3,0.7856]
[1748624298825,0.78561,2545.4,2545.3,0.7856]
[1748624299034,1.96376,2545.7,2545.1,3.2078]
[1748624299228,0.78566,2545.2,2545.1,3.2078]
[1748624299627,0.78581,2544.7,2544.6,8.9153]
[1748624299830,4.69866,2545.1,2544.6,15.1443]
[1748624300028,0.78581,2544.7,2544.6,6.1788]
[1748624300527,0.78579,2544.8,2544.7,0.78579]
[1748624300725,0.00589426,2545.4,2544.7,1.96454]